Cogmind - Beta 16 @@@ ROGUE MODE // 2025.12.05 @ 01:29:33 Player: Red Box Result: Self-destructed Performance ------------- Evolutions (2) 1000 Regions Visited (4) 800 Robots Destroyed (63) 315 Value Destroyed (1593) 1593 Prototype IDs (14) 280 Alien Tech Used (0) 0 Bonus (81) 81 TOTAL SCORE: 4069 Bonus ------- Follower Combat Kills 81 Cogmind --------- Core Integrity 449/550 Matter 300/300 Energy 160/160 System Corruption 0% Temperature Cool (0) Movement Rolling (145) Ox3 Location -8/Materials Parts ------- > --- POWER (1) -------- Light Nuclear Core > --- PROPULSION (2) --- Light Treads Compact Wheel > --- UTILITY (6) ------ Improved Heat Sink High-capacity Storage Unit Makeshift Trap Scanner Makeshift Light Armor Plating > --- WEAPON (2) ------- EM Pulse Gun Heavy Riot Gun > --- INVENTORY (20) --- Light Deuterium Engine Aerolev Unit Aerolev Unit Aerolev Unit Aerolev Unit Improved Heat Sink Medium Storage Unit Experimental Sensor Array Light Armor Plating Makeshift Light Armor Plating Beamcaster Beam Cannon Powered Cannon Subdweller Machine Gun Subdweller Shrapnel Launcher Datajack Makeshift Spear Piercing Trap Peak State ------------ > --- POWER ------------ Light Nuclear Core > --- PROPULSION ------- Aerolev Unit Aerolev Unit > --- UTILITY ---------- Improved Heat Sink High-capacity Storage Unit Makeshift Trap Scanner Makeshift Light Armor Plating > --- WEAPON ----------- EM Pulse Gun Heavy Riot Gun > --- INVENTORY -------- Light Deuterium Engine Compact Wheel Aerolev Unit Aerolev Unit Improved Heat Sink Medium Storage Unit Experimental Sensor Array Light Armor Plating Makeshift Light Armor Plating Beamcaster Beam Cannon Powered Cannon Subdweller Machine Gun Subdweller Shrapnel Launcher Datajack Makeshift Spear Piercing Trap [Rating: 36] Favorites ----------- Power Ion Engine Engine Ion Engine Power Core Light Nuclear Core Propulsion Aluminum Leg Treads Light Treads Leg Aluminum Leg Wheel Compact Wheel Hover Unit Aerolev Unit Utility High-capacity Storage Unit Device Improved Terrain Scanner Storage High-capacity Storage Unit Processor Targeting Computer Protection Light Armor Plating Weapon Battle Cannon Energy Gun EM Pulse Gun Energy Cannon Beam Cannon Ballistic Gun Light Assault Rifle Ballistic Cannon Battle Cannon Launcher Grenade Launcher Special Weapon Mining Laser Piercing Weapon Makeshift Spear Special Melee Weapon Datajack Build | -11 -10 -10 -10 -8 ------- Run | Yrd Mat Min Sub Mat Slots Evolved 4 | . . . . 4 Power . | . . . . . Propulsion . | . . . . . Utility 4 | . . . . 4 Weapon . | . . . . . Parts Attached 46 | 7 10 3 13 13 Power 5 | 1 1 1 1 1 Engine 4 | 1 1 1 1 . Core 1 | . . . . 1 Reactor . | . . . . . Propulsion 11 | 2 2 1 2 4 Treads 2 | . . . 1 1 Leg 5 | 2 2 1 . . Wheel 2 | . . . 1 1 Hover 2 | . . . . 2 Flight . | . . . . . Utility 11 | 2 2 . 3 4 Device 4 | 1 . . 1 2 Storage 4 | 1 1 . 1 1 Processor 1 | . 1 . . . Hackware . | . . . . . Protection 2 | . . . 1 1 Artifact . | . . . . . Weapon 19 | 2 5 1 7 4 Energy Gun 5 | . 3 . . 2 Energy Cannon 1 | . . . 1 . Ballistic Gun 5 | 2 1 . . 2 Ballistic Cannon 3 | . . . 3 . Launcher 2 | . . 1 1 . Special Weapon 1 | . 1 . . . Impact Weapon . | . . . . . Slashing Weapon . | . . . . . Piercing Weapon 1 | . . . 1 . Special Melee Weapon 1 | . . . 1 . Unidentified Prototypes 2 | . . . . 2 Parts Lost 10 | . . . 3 7 Power 2 | . . . 1 1 Propulsion 3 | . . . 1 2 Utility 1 | . . . . 1 Weapon 4 | . . . 1 3 Highest Loss Streak 6 | . . . 2 6 To Critical Strikes . | . . . . . Average Backups 13 | 5 8 10 16 12 Power . | . . . . . Propulsion 2 | 3 3 2 1 1 Utility 3 | . 1 2 3 3 Weapon 7 | . 2 3 9 7 Tool/Special . | . . . . . Unused Backups 12 | . 1 1 1 9 Power 1 | . . . . 1 Propulsion 4 | . 1 1 . 2 Utility 3 | . . . . 3 Weapon 4 | . . . 1 3 Tool/Special . | . . . . . Average Slot Usage (%) 98 | . 99 100 99 73 Engine 13 | . 14 14 13 1 Leg 25 | . 28 28 26 . Device 2 | . 6 . . 18 Storage 13 | . 14 14 14 8 Processor 6 | . 7 14 4 . Protection 5 | . . . 8 9 Energy Gun 6 | . 14 26 . 11 Ballistic Gun 2 | . 13 . . 1 Ballistic Cannon 14 | . . . 22 1 Piercing Weapon 1 | . . . 2 . Peak Build Rating 36 | 9 9 8 25 36 Average Rating 14 | 7 8 7 16 28 On Entrance 8 | . 9 8 8 18 Avg Prop Armor Cover (%) 9 | . . . 9 9 Naked Turns . | . . . . . Heaviest Build 69 | 13 19 20 59 69 Greatest Support 20 | 20 20 20 20 20 Greatest Overweight (x) 4 | 3 . . 3 4 Average Overweight (x) 1 | . . . 1 2 Largest Inventory Capacity 20 | 8 10 10 20 20 Average Capacity 15 | 7 8 10 18 18 Most Carried 20 | 6 10 10 20 19 Average Carried 14 | 5 8 9 17 14 Final Capacity 20 | 8 10 10 20 20 Final Carried 19 | 6 10 10 18 19 Class Distribution -------------------- 97% | Mutant Dominant Class ---------------- Mutant | -10/Materials Mutant | -10/Mines Mutant | -10/Subcaves Mutant | -8/Materials Resources | -11 -10 -10 -10 -8 ----------- Run | Yrd Mat Min Sub Mat Matter Collected 1535 | 358 158 40 727 252 Remotely . | . . . . . Salvage Created 1807 | 229 687 37 369 485 Parts 132 | 20 51 3 31 27 Haulers Intercepted 4 | . 2 . . 2 Recyclers Shooed . | . . . . . Parts Field Recycled . | . . . . . Retrieved Matter . | . . . . . Parts Self-Destructed 11 | . . . 11 . Prevented . | . . . . . Parts Restored . | . . . . . Kills | -11 -10 -10 -10 -8 ------- Run | Yrd Mat Min Sub Mat Combat Hostiles Destroyed 39 | . 14 3 14 8 Guns 16 | . 12 2 . 2 Cannons 11 | . . . 9 2 AOE 12 | . 2 1 5 4 Classes Destroyed 12 | 2 6 . 1 3 Worker 1 | . 1 . . . Tunneler 9 | 8 1 . . . Hauler 4 | . 2 . . 2 Recycler 2 | 1 . . . 1 Operator 2 | . 2 . . . Watcher 6 | . 3 . . 3 Swarmer 9 | . 6 3 . . Grunt 12 | . 8 . . 4 Brawler 1 | . . . . 1 Sentry 1 | . . . . 1 Hunter 2 | . . . . 2 Subdweller 14 | . . . 14 . Best Kill Streak 9 | 4 9 2 3 8 Combat Bots Only 8 | . 8 2 3 6 Max Kills in Single Turn 5 | 1 2 1 1 5 Gunslinging . | . . . . . Exploded 3 | . 1 1 1 3 Melee . | . . . . . Uniques/NPCs Destroyed . | . . . . . Combat | -11 -10 -10 -10 -8 -------- Run | Yrd Mat Min Sub Mat Hostile Shots Fired 191 | . 58 12 43 78 Missed 47 | . 14 2 13 18 Hits 144 | . 44 10 30 60 Projectile 144 | . 44 10 30 60 Critical Strikes 3 | . . . 2 1 Damage Taken 2084 | . 425 123 678 858 Core 333 | . 79 12 141 101 Absorbed by Shields . | . . . . . Core Remaining (%) 53 | 100 . . 7 . Volleys Fired 185 | 44 55 6 50 30 Largest 2 | 2 2 2 2 2 Hottest 100 | 40 100 80 90 100 Shots Fired 342 | 88 109 11 78 56 Gun 244 | 88 108 10 2 36 Cannon 86 | . . . 68 18 Launcher 11 | . . 1 8 2 Special 1 | . 1 . . . Kinetic 231 | 88 58 . 68 17 Thermal 15 | . 1 . 3 11 Explosive 6 | . . 1 5 . Electromagnetic 90 | . 50 10 2 28 Robot Hit Streak 25 | 8 10 9 25 13 Robot Miss Streak 4 | 3 4 1 2 3 Penetration Max . | . . . . . Secondary Targets 4 | . 4 . . . Max Gunslinging Chain 1 | . 1 . . . Shots Hit Robots 210 | 53 64 6 48 39 Core Hits 102 | 17 34 5 24 22 Critical Kills 1 | . 1 . . . Critical Parts Destroyed . | . . . . . Critical Strikes 5 | . 1 1 3 . Destroy 1 | . 1 . . . Blast 3 | . . . 3 . Corrupt 1 | . . 1 . . Melee Attacks 41 | . . . 41 . Impact . | . . . . . Slashing . | . . . . . Piercing 41 | . . . 41 . Sneak Attacks . | . . . . . Combat Hostiles . | . . . . . Follow-up Attacks . | . . . . . Damage Inflicted 4501 | 446 963 128 1300 1664 Guns 1663 | 446 777 75 21 344 Cannons 1077 | . . . 774 303 Explosions 1758 | . 186 50 505 1017 Melee . | . . . . . Ramming 3 | . . 3 . . Kinetic 2146 | 446 302 . 953 445 Thermal 1178 | . 186 . 53 939 Explosive 323 | . . 50 273 . Electromagnetic 851 | . 475 75 21 280 Impact . | . . . . . Slashing . | . . . . . Piercing . | . . . . . Highest Corruption . | . . . . . Average Corruption . | . . . . . Corruption Purged . | . . . . . Corruption Blocked . | . . . . . Overload Shots . | . . . . . Overflow Damage 36 | . . . . 36 Projectiles . | . . . . . Explosions 36 | . . . . 36 Melee . | . . . . . Knockbacks 13 | . . . 10 3 Impact . | . . . . . Kinetic 10 | . . . 8 2 Secondary 3 | . . . 2 1 Self-Inflicted Damage . | . . . . . Shots . | . . . . . Rammed . | . . . . . Targets Rammed 1 | . . 1 . . Kicked 1 | . . 1 . . Crushed . | . . . . . Highest Temperature 265 | . 78 39 265 151 Average Temperature 32 | . 22 17 133 33 Received Heat Transfer 813 | . 117 57 405 234 Effects 1 | . . . 1 . Energy Bleed 1 | . . . 1 . Siege Activations . | . . . . . Martial Activations . | . . . . . Shielding Activations . | . . . . . Robots Disrupted . | . . . . . Combat Hostiles . | . . . . . Robots Corrupted . | . . . . . Combat Hostiles . | . . . . . Parts Fried 2 | . 2 . . . Impact Corruptions . | . . . . . Robots Melted . | . . . . . Combat Hostiles . | . . . . . Parts Melted 2 | . . . 1 1 Heat Transferred 1331 | . 250 . 111 970 Parts Sabotaged . | . . . . . Parts Stolen . | . . . . . Parts Stripped . | . . . . . Power Chain Reactions 5 | . 3 . . 2 Alert | -11 -10 -10 -10 -8 ------- Run | Yrd Mat Min Sub Mat Maximum Alert Level 1 | . 1 . . 1 Low Security (%) 78 | 100 59 100 . 95 Level 1 21 | . 40 . . 4 Level 2 . | . . . . . Level 3 . | . . . . . Level 4 . | . . . . . Level 5 . | . . . . . High Security . | . . . . . Max Security . | . . . . . Peak Influence 282 | 15 282 143 . 209 Initial 97 | . . 97 . . Average 98 | 1 124 65 . 147 Influence Increases 1170 | 45 495 236 30 364 Destroy 0b10 Robot/C 600 | . 280 160 . 160 Destroy 0b10 Robot/NC 120 | 45 45 . . 30 Destroy Leader 160 | . 80 30 . 50 Allied During Kill 22 | . . 22 . . Successful Hack 47 | . 33 . . 14 Select Force Hacks 30 | . 30 . . . Disable Machine 60 | . . . . 60 Destroy Structure 71 | . 12 9 . 50 Lose Combat Pursuer 60 | . 15 15 30 . Influence Decreases 1036 | 45 245 452 64 230 Entered New Map 171 | . . 153 18 . Time Decay 795 | 45 245 299 46 160 Lost Part 70 | . . . . 70 Squads Dispatched 6 | . 5 . . 1 Investigation 4 | . 3 . . 1 Extermination . | . . . . . Reinforcement 2 | . 2 . . . Assault . | . . . . . Garrison . | . . . . . Intercept . | . . . . . Searches Triggered . | . . . . . Construction Impeded . | . . . . . Haulers Reinforced . | . . . . . Active Scanning Responses . | . . . . . Cargo Convoy Interrupts . | . . . . . Stealth | -11 -10 -10 -10 -8 --------- Run | Yrd Mat Min Sub Mat Distress Signals 3 | . 1 . . 2 Communications Jammed . | . . . . . Distress Signals . | . . . . . Times Spotted 63 | . 26 6 16 15 Peak Tracking Total 7 | . 5 3 3 7 Tactical Retreats 4 | . 1 1 2 . Traps | -11 -10 -10 -10 -8 ------- Run | Yrd Mat Min Sub Mat Traps Triggered 2 | . 1 . 1 . Indirectly . | . . . . . Trap Hack Attempts 60 | . . . 60 . Triggered . | . . . . . Disarmed 1 | . . . 1 . Reprogrammed 6 | . . . 6 . Reused . | . . . . . Traps Extracted . | . . . . . Installed . | . . . . . Triggered . | . . . . . Most Traps Carried 1 | . . . 1 1 Machines | -11 -10 -10 -10 -8 ---------- Run | Yrd Mat Min Sub Mat Machines Disabled 5 | . . . 1 4 Max in Single Turn 4 | . . . 1 4 Machines Repaired . | . . . . . Machines Dismantled . | . . . . . Machines Sabotaged . | . . . . . Overloaded Fab Kills . | . . . . . Hacking | -11 -10 -10 -10 -8 --------- Run | Yrd Mat Min Sub Mat Machines Accessed 11 | . 7 . 2 2 Terminals 8 | . 6 . . 2 Fabricators . | . . . . . Repair Stations . | . . . . . Recycling Units 1 | . 1 . . . Scanalyzers . | . . . . . Garrison Access . | . . . . . Total Hacks 37 | . 23 . 5 9 Successful 24 | . 16 . 5 3 Failed 13 | . 7 . . 6 Catastrophic 1 | . 1 . . . Database Lockouts . | . . . . . Manual 28 | . 20 . . 8 Terminals 30 | . 21 . . 9 Fabricators . | . . . . . Repair Stations . | . . . . . Recycling Units 2 | . 2 . . . Scanalyzers . | . . . . . Garrison Access . | . . . . . Terminal Hacks 11 | . 6 . 5 . Record 4 | . . . 4 . Robot Analysis 4 | . 4 . . . Terminal Index 1 | . 1 . . . Locate Traps 1 | . 1 . . . Proto ID Catalog 1 | . . . 1 . Fabricator Hacks . | . . . . . Repair Station Hacks . | . . . . . Recycling Unit Hacks 1 | . 1 . . . Retrieve Components 1 | . 1 . . . Scanalyzer . | . . . . . Garrison Access Hacks . | . . . . . Unauthorized Hacks 12 | . 9 . . 3 Terminals 11 | . 8 . . 3 Botnet 2 | . 2 . . . Operators 2 | . 1 . . 1 Skim 7 | . 5 . . 2 Fabricators . | . . . . . Repair Stations . | . . . . . Recycling Units 1 | . 1 . . . Tunnel 1 | . 1 . . . Scanalyzers . | . . . . . Garrison Access . | . . . . . Data Cores Recovered . | . . . . . Used . | . . . . . Hacking Detections 8 | . 6 . . 2 Full Trace Events 2 | . 1 . . 1 Feedback Events . | . . . . . Feedback Blocked . | . . . . . Robot Schematics Acquired . | . . . . . Robots Built . | . . . . . Authchips . | . . . . . Time . | . . . . . Total Robot Build Rating . | . . . . . Part Schematics Acquired . | . . . . . Parts Built . | . . . . . Authchips . | . . . . . Time . | . . . . . Total Part Build Rating . | . . . . . Part Studies Acquired . | . . . . . Parts Repaired . | . . . . . Time . | . . . . . Parts Recycled . | . . . . . Recycled Matter . | . . . . . Retrieved Matter . | . . . . . Retrieved Components 9 | . 9 . . . Parts Scanalyzed . | . . . . . Part Schematics Acquired . | . . . . . Parts Damaged . | . . . . . Bothacking | -11 -10 -10 -10 -8 ------------ Run | Yrd Mat Min Sub Mat Used RIF Installer . | . . . . . Robots Hacked . | . . . . . Non-combat . | . . . . . Combat . | . . . . . Robot Hacks Applied . | . . . . . Relay Couplers Released . | . . . . . Fabnet Peak Effective % . | . . . . . Robots Rewired . | . . . . . Allies Hacked . | . . . . . Hacks Repelled . | . . . . . Allies | -11 -10 -10 -10 -8 -------- Run | Yrd Mat Min Sub Mat Total Allies 2 | . . 2 . . Largest Group 2 | . . 2 2 . Highest-Rated Group 47 | . . 47 47 . Highest-Rated Ally 31 | . . 31 31 . Total Orders . | . . . . . Ally Attacks 10 | . . 7 3 . Total Damage 167 | . . 125 42 . Kills 5 | . . 5 . . Allies Corrupted . | . . . . . Allies Melted . | . . . . . Intel | -11 -10 -10 -10 -8 ------- Run | Yrd Mat Min Sub Mat Active Infowar (turns) 1240 | 152 757 . 257 74 Sensors 1 | . . . . 1 Terrain 909 | 152 757 . . . Traps 331 | . . . 257 74 Robot Analysis Total 4 | . 4 . . . Derelict Logs Recovered 4 | . . 2 2 . Drone Launches . | . . . . . Drone Recoveries . | . . . . . Exploration | -11 -10 -10 -10 -8 ------------- Run | Yrd Mat Min Sub Mat Turns Passed 7717 | 339 1546 732 4749 351 Spaces Moved 3687 | 170 914 572 1915 116 Core 14 | 10 . . . 4 Treads 5 | . . . . 5 Legs 3348 | 160 914 572 1702 . Wheels 251 | . . . 213 38 Hover 69 | . . . . 69 Flight . | . . . . . Fastest Speed 46 | 50 120 120 120 46 Average Speed 178 | 122 120 120 228 187 Slowest Speed 320 | 200 120 120 260 320 Overloaded Moves . | . . . . . Propulsion Burnouts . | . . . . . Robots Hopped . | . . . . . Potential Cave-ins . | . . . . . Cave-ins Triggered . | . . . . . Exploration Rate (%) 60 | 7 99 99 85 12 Regions Visited 4 Branch Regions 2 Pre-discovered Areas 4 | . 2 . 2 . Known Exits Taken 1 | . . . 1 . Unknown Exits Taken 3 | 1 1 1 . . Scrap Searched 14 | . . 1 13 . Spaces Dug 36 | . 1 9 25 1 Terrain Destroyed 162 | . 11 9 94 48 Melee 22 | . . . 22 . Projectile 5 | . 1 . 3 1 AOE 135 | . 10 9 69 47 Terrain Rammed . | . . . . . Walls Destroyed . | . . . . . Machines Disabled . | . . . . . Actions | -11 -10 -10 -10 -8 --------- Run | Yrd Mat Min Sub Mat Total 4446 | 226 1265 608 2155 192 Wait 326 | . 267 21 33 5 Move 3683 | 169 913 571 1914 116 Hop . | . . . . . Pick Up 49 | 6 10 2 16 15 Fast Attach 16 | 7 2 . 1 6 Attach 17 | . 1 . 7 9 Detach 6 | . . . 2 4 Swap 39 | . 7 3 25 4 Drop 23 | . 10 4 6 3 Fire 185 | 44 55 6 50 30 Melee 41 | . . . 41 . Ram . | . . . . . Kick 1 | . . 1 . . Crush . | . . . . . Escape Stasis . | . . . . . Rewire . | . . . . . Trap 60 | . . . 60 . Miscellaneous . | . . . . . Route ------- -11/Scrapyard -10/Materials (discovered 5 exits: *Mat x3 / [*Min] / *Sub) -10/Mines (discovered 4 exits: *Mat x2 / [*Exi] / *Sub) -10/Subcaves (discovered 2 exits: *Mat x2) -8/Materials (discovered 1 exit: Fac) History --------- Turn | Location | Event 2 | -11/Scrapyard | Met Revision 17 26 | -11/Scrapyard | Discovered new exit (range 15) 340 | -11/Scrapyard | Entered Materials 341 | -10/Materials | Build established: Mutant 466 | -10/Materials | Discovered new exit (range 9) 1014 | -10/Materials | Discovered new exit (range 9) 1093 | -10/Materials | Destroyed 8 combat bots 1284 | -10/Materials | Discovered new exit (range 14) 1446 | -10/Materials | Discovered new exit (range 3) 1496 | -10/Materials | Learned Storage trap positions 1558 | -10/Materials | Learned 4 Subcaves zone layouts 1564 | -10/Materials | Discovered new exit (range 15) 1658 | -10/Materials | Learned 4 Subcaves zone layouts 1693 | -10/Materials | Loaded intel: 10 trap records 1789 | -10/Materials | Learned location of Mines (-10) 1881 | -10/Materials | Learned location of 1 exit from Recycling 1886 | -10/Materials | Entered Mines 1887 | -10/Mines | Identified exit to Materials 1897 | -10/Mines | Found a damaged Exp. Sensor Array with a note attached 1900 | -10/Mines | Found Prototype Device 2114 | -10/Mines | Deemed a non-threat by the Exiles lab entrance 2114 | -10/Mines | Discovered new exit (range 5) 2191 | -10/Mines | Learned Materials security intel 2210 | -10/Mines | Discovered new exit (range 6) 2329 | -10/Mines | Learned 4 Materials zone layouts 2618 | -10/Mines | Entered Subcaves 2618 | -10/Subcaves | Accompanied by 2 allies 2619 | -10/Subcaves | Identified exit to Materials 2623 | -10/Subcaves | Led the pair of lost Derelicts to an unsafe place 2865 | -10/Subcaves | Learned location of Zion (-6) 2865 | -10/Subcaves | Met a Zionite searching for "candidates" 2877 | -10/Subcaves | Learned Materials emergency access door positions 3219 | -10/Subcaves | Visited 4L-MR0's lab 3253 | -10/Subcaves | Found Powered Cannon 3572 | -10/Subcaves | Core integrity fell below 50% 4026 | -10/Subcaves | Visited Clippyterm 4033 | -10/Subcaves | Learned Factory garrison access intel 5184 | -10/Subcaves | A swath of the cavern ceiling suddenly collapsed 6134 | -10/Subcaves | Core integrity fell below 20% 6140 | -10/Subcaves | Ambushed by Subdweller buried in earth 6449 | -10/Subcaves | Ambushed by Subdweller buried in earth 6876 | -10/Subcaves | A swath of the cavern ceiling suddenly collapsed 7032 | -10/Subcaves | Disturbed a concealed Subdweller 7032 | -10/Subcaves | Disturbed a concealed Subdweller 7367 | -10/Subcaves | Entered Materials 7367 | -8/Materials | Evolved 4 slots: Utility x4 7368 | -8/Materials | Identified exit to Factory 7369 | -8/Materials | Identified Exp. Sensor Array 7500 | -8/Materials | Lost 6 parts (1p2n1u2w) 7718 | -8/Materials | Self-destructed Last Messages --------------- 07682_ Acquired Lgt. Armor Plating. 07687_ Acquired 10 matter. 07693_ Acquired Lgt. Treads. 07695_ Acquired 10 matter. 07704_ R-06 Scavenger collects Corrupted Heat Sink. 07707_ R-06 Scavenger collects Beam Rifle. 07708_ K-01 Serf collects debris. 07711_ R-06 Scavenger collects Sml. Storage Unit. 07718_ Connecting with Terminal... >>Trojan(Skim) Trojan loaded successfully. Testing... Terminal linked with 1 system. Please expand to 3 more systems! >>Trojan(Operators) Trojan loaded successfully. Testing... Operator tracking enabled and active. 07718_ ALERT: Suspicious activity at Terminal M002. Dispatching Investigation squad. Map ----- +----------------------------------------------------+ | ??# """ """ """ ?????????????????????????????????? | | ??# """ """ """ ?????????????????????????????????? | | ??# ?????????????????????????????????? | | ??# ?????????????????????????????????? | | ??# ?????????????????????????????????? | | ??#########+####?????????????????????????????????? | | ????????# ?????????????????????????????????? | | ######### ?????????????????????????????????? | | ## ?????????????????????????????????? | | """ ## "???????????????????????#####?????? | | """" ## ""???????????????????????# #?????? | | """" ## "???????????????????????# #?????? | | """" + ???????????????????????# #?????? | | """ ## ??????????###+########## #?????? | | ## ????????? %* #?????? | | ### ????????? = #?????? | | ########?# ????????? #?????? | | ####### ???????????############# #?????? | | # # ###????????????????????? ## #?????? | | # # #??????????????????????? ## #?????? | | " # """ # #################?????? ## #?????? | | " # """ # !|! +??"""" ?# #?????? | | " + """ # !|! #?""""" ?# #?????? | | # # |! """ #?""""" ??# ####### | | ####### a !!= "T" # """"" ??# # | | !!= @ # """""???# # " | | !!= # ??# # " | | w #####+##### + " | | % # | | ###### ############## % % *% # | | #????# # ?????????# # | | #????# # ?????????## %## # | | #????# # ??????????# =## # "T" | | #????# + ??????????# ## % ####### | | ###### # ??????????# ##% ##????? | | # T # # ??????????# ## ##????? | | # # # ??????????# ## #?????? | | # # # ??????????# ## #?????? | | # # # ??????????# ## ##????? | | # # ####??????????# ## ##????? | | # # #?????????????# ## ##????? | | # # #?????????????# ## ##????? | | # # #?????????????# ## ##????? | | # # ####??????????# ## ####### | | ###+## ??????????# ?" # | | ??????????# ?? # """ | | T??????????? ????? # """ | | ????????????????????? # """ | | ?????????????????????????????????????????????????? | | ?????????????????????????????????????????????????? | +----------------------------------------------------+ Best States ------------- Heat Dissipation 45 Energy Generation 18 Energy Capacity 250 Matter Stores 300 Matter Capacity 300 Sight Range 16 Robot Scan Range 20 Terrain Scan Range 16 Terrain Scan Density 10 Armor Coverage 250 Evasion (%) 55 Targeting Accuracy 5 Recoil Reduction 1 Item Schematics ----------------- None Robot Schematics ------------------ None Fabricated ------------ Nothing Repaired ---------- Nothing Studied --------- None Alien Tech Used ----------------- None Achievements -------------- None Challenges ------------ None Game ------ Seed PiercelightShiftAmplifier Manual? 0 Play Time 00:38:45 Cumulative 772.6 hours Start 2025.12.05 @ 00:52:58 End 2025.12.05 @ 01:29:33 Sessions 1 Manual Loads 0 Difficulty Rogue Special Mode None Game No. 531 Rogue 531 Adventurer 0 Explorer 0 Win Type - Total 1 Types 1/0/0/0/0/0/0/0/0/0 Lore% 76 Gallery% 70 Achievement% 50 Wizard Run 0 Options --------- Layout 1 ASCII 0 Keyboard 0 Movement Mouse Keybinds 0 Fullscreen 1 Font 20/SmallcapsGlow Map View 54x42 Zoom Use 0% Tactical HUD 1 Map Filters NONE Filters NONE Steam 1 RUN: e83fcf61-4a95-49c6-a07c-9e172a9a9107